[Event "Titled Tuesday Blitz May 9 Early 2023"]
[White "Acikel, Mert"]
[Black "Sanchez, Robert"]
[WhiteFideId "12956465"]
[BlackFideId "2034360"]
[WhiteElo "2097"]
[BlackElo "1863"]
[Result "0-1"]
[Round "07"]
[TimeControl "180+2"]
[Date "2023.05.09"]
[WhiteClock "0:00:03"]
[BlackClock "0:01:38"]

1. e4 {[%clk 0:03:00]}  e6 {[%clk 0:02:59]} 2. d4 {[%clk 0:02:52]}  d5 {[%clk 0:02:59]} 3. Nd2 {[%clk 0:02:53]}  Nf6 {[%clk 0:02:59]} 4. e5 {[%clk 0:02:53]}  Nfd7 {[%clk 0:02:59]} 5. Bd3 {[%clk 0:02:54]}  c5 {[%clk 0:02:59]} 6. c3 {[%clk 0:02:54]}  Nc6 {[%clk 0:02:59]} 7. Ne2 {[%clk 0:02:55]}  cxd4 {[%clk 0:03:00]} 8. cxd4 {[%clk 0:02:55]}  f6 {[%clk 0:03:00]} 9. exf6 {[%clk 0:02:55]}  Nxf6 {[%clk 0:03:01]} 10. O-O {[%clk 0:02:55]}  Bd6 {[%clk 0:03:02]} 11. Nf3 {[%clk 0:02:56]}  Qc7 {[%clk 0:03:03]} 12. h3 {[%clk 0:02:56]}  O-O {[%clk 0:03:00]} 13. Be3 {[%clk 0:02:57]}  Bd7 {[%clk 0:03:00]} 14. Re1 {[%clk 0:02:52]}  Nh5 {[%clk 0:02:57]} 15. Nc3 {[%clk 0:02:31]}  a6 {[%clk 0:02:54]} 16. Rc1 {[%clk 0:02:30]}  Nf4 {[%clk 0:02:52]} 17. Bf1 {[%clk 0:02:30]}  Rf6 {[%clk 0:02:40]} 18. Ne5 {[%clk 0:02:25]}  Raf8 {[%clk 0:02:31]} 19. Ne2 {[%clk 0:02:12]}  Bxe5 {[%clk 0:02:29]} 20. dxe5 {[%clk 0:02:11]}  Qxe5 {[%clk 0:02:28]} 21. Bxf4 {[%clk 0:01:58]}  Rxf4 {[%clk 0:02:27]} 22. Nxf4 {[%clk 0:01:58]}  Qxf4 {[%clk 0:02:28]} 23. Qe2 {[%clk 0:01:04]}  e5 {[%clk 0:02:21]} 24. Qe3 {[%clk 0:00:51]}  Qf6 {[%clk 0:02:15]} 25. Qb6 {[%clk 0:00:49]}  d4 {[%clk 0:02:11]} 26. Rc2 {[%clk 0:00:48]}  Bf5 {[%clk 0:02:07]} 27. Rd2 {[%clk 0:00:49]}  Qg6 {[%clk 0:02:01]} 28. Qxb7 {[%clk 0:00:49]}  Bxh3 {[%clk 0:02:00]} 29. Qb3+ {[%clk 0:00:43]}  Be6 {[%clk 0:01:59]} 30. Bc4 {[%clk 0:00:21]}  Bxc4 {[%clk 0:01:54]} 31. Qxc4+ {[%clk 0:00:21]}  Rf7 {[%clk 0:01:51]} 32. Rc2 {[%clk 0:00:10]}  d3 {[%clk 0:01:44]} 33. Rd2 {[%clk 0:00:10]}  Nd4 {[%clk 0:01:41]} 34. Qxd3 {[%clk 0:00:03]}  Nf3+ {[%clk 0:01:38]} 0-1


[Site "https://www.chess.com"]

[Event "Titled Tuesday Blitz May 9 Early 2023"]
[White "Pein, Jonathan"]
[Black "Nastase, Robert-Paul"]
[WhiteFideId "417092"]
[BlackFideId "1221175"]
[WhiteElo "2151"]
[BlackElo "2175"]
[Result "1-0"]
[Round "07"]
[TimeControl "180+2"]
[Date "2023.05.09"]
[WhiteClock "0:01:01"]
[BlackClock "0:00:00"]

1. e4 {[%clk 0:03:00]}  c5 {[%clk 0:02:54]} 2. Nh3 {[%clk 0:02:59]}  g6 {[%clk 0:02:25]} 3. f4 {[%clk 0:02:57]}  Bg7 {[%clk 0:02:24]} 4. d3 {[%clk 0:02:55]}  e6 {[%clk 0:02:18]} 5. Be2 {[%clk 0:02:49]}  Ne7 {[%clk 0:02:17]} 6. O-O {[%clk 0:02:49]}  O-O {[%clk 0:02:14]} 7. c3 {[%clk 0:02:48]}  Nbc6 {[%clk 0:02:13]} 8. Qe1 {[%clk 0:02:48]}  d6 {[%clk 0:02:07]} 9. Na3 {[%clk 0:02:46]}  f5 {[%clk 0:02:02]} 10. Be3 {[%clk 0:02:36]}  Rb8 {[%clk 0:01:49]} 11. Rd1 {[%clk 0:02:27]}  b5 {[%clk 0:01:37]} 12. Qh4 {[%clk 0:02:27]}  h6 {[%clk 0:01:34]} 13. g4 {[%clk 0:02:17]}  e5 {[%clk 0:00:46]} 14. fxe5 {[%clk 0:02:07]}  fxg4 {[%clk 0:00:31]} 15. Nf2 {[%clk 0:01:59]}  g5 {[%clk 0:00:18]} 16. Qg3 {[%clk 0:01:57]}  Bxe5 {[%clk 0:00:17]} 17. Qg2 {[%clk 0:01:57]}  Ng6 {[%clk 0:00:15]} 18. Nxg4 {[%clk 0:01:55]}  Nh4 {[%clk 0:00:14]} 19. Rxf8+ {[%clk 0:01:52]}  Qxf8 {[%clk 0:00:14]} 20. Qf2 {[%clk 0:01:53]}  Bxg4 {[%clk 0:00:12]} 21. Bxg4 {[%clk 0:01:50]}  Qxf2+ {[%clk 0:00:12]} 22. Bxf2 {[%clk 0:01:51]}  Rf8 {[%clk 0:00:12]} 23. Bxh4 {[%clk 0:01:48]}  gxh4 {[%clk 0:00:13]} 24. Nxb5 {[%clk 0:01:48]}  Rb8 {[%clk 0:00:12]} 25. Be6+ {[%clk 0:01:35]}  Kh8 {[%clk 0:00:12]} 26. a4 {[%clk 0:01:30]}  a6 {[%clk 0:00:12]} 27. d4 {[%clk 0:01:24]}  Bf4 {[%clk 0:00:07]} 28. Nc7 {[%clk 0:01:10]}  Rxb2 {[%clk 0:00:07]} 29. Nd5 {[%clk 0:01:10]}  Bxh2+ {[%clk 0:00:06]} 30. Kf1 {[%clk 0:01:11]}  Bg3 {[%clk 0:00:04]} 31. Ne3 {[%clk 0:01:02]}  Rf2+ {[%clk 0:00:03]} 32. Kg1 {[%clk 0:01:03]}  cxd4 {[%clk 0:00:03]} 33. cxd4 {[%clk 0:01:03]}  Rf3 {[%clk 0:00:02]} 34. Nf5 {[%clk 0:01:03]}  Rf4 {[%clk 0:00:00]} 35. Nxh6 {[%clk 0:01:01]} 1-0


[Site "https://www.chess.com"]

[Event "Titled Tuesday Blitz May 9 Early 2023"]
[White "Kiseljova, Marya"]
[Black "Larina, Maria"]
[WhiteFideId "4155009"]
[BlackFideId "24113182"]
[WhiteElo "1831"]
[BlackElo "1848"]
[Result "1-0"]
[Round "07"]
[TimeControl "180+2"]
[Date "2023.05.09"]
[WhiteClock "0:00:24"]
[BlackClock "0:00:00"]

1. d4 {[%clk 0:03:00]}  f5 {[%clk 0:02:58]} 2. c4 {[%clk 0:02:59]}  Nf6 {[%clk 0:02:56]} 3. Nf3 {[%clk 0:02:59]}  d6 {[%clk 0:02:56]} 4. Nc3 {[%clk 0:02:58]}  g6 {[%clk 0:02:56]} 5. g3 {[%clk 0:02:57]}  Bg7 {[%clk 0:02:56]} 6. Bg2 {[%clk 0:02:58]}  O-O {[%clk 0:02:56]} 7. O-O {[%clk 0:02:58]}  Nc6 {[%clk 0:02:57]} 8. Re1 {[%clk 0:02:54]}  e5 {[%clk 0:02:55]} 9. dxe5 {[%clk 0:02:38]}  dxe5 {[%clk 0:02:56]} 10. Bg5 {[%clk 0:02:32]}  e4 {[%clk 0:02:44]} 11. Nh4 {[%clk 0:02:10]}  h6 {[%clk 0:02:04]} 12. Qxd8 {[%clk 0:02:03]}  Nxd8 {[%clk 0:01:47]} 13. Bxf6 {[%clk 0:02:02]}  Rxf6 {[%clk 0:01:47]} 14. Nd5 {[%clk 0:02:01]}  Rf7 {[%clk 0:01:27]} 15. Nxg6 {[%clk 0:01:58]}  c6 {[%clk 0:01:12]} 16. Nc3 {[%clk 0:01:49]}  Be6 {[%clk 0:01:02]} 17. c5 {[%clk 0:01:43]}  Bd4 {[%clk 0:00:48]} 18. Na4 {[%clk 0:01:38]}  Bc4 {[%clk 0:00:39]} 19. e3 {[%clk 0:01:35]}  Bf6 {[%clk 0:00:32]} 20. Rec1 {[%clk 0:01:21]}  Bb5 {[%clk 0:00:25]} 21. Nc3 {[%clk 0:01:20]}  Bd3 {[%clk 0:00:24]} 22. Nf4 {[%clk 0:01:18]}  Be5 {[%clk 0:00:21]} 23. Nxd3 {[%clk 0:01:15]}  exd3 {[%clk 0:00:21]} 24. Rd1 {[%clk 0:01:15]}  Rd7 {[%clk 0:00:20]} 25. Rd2 {[%clk 0:01:16]}  Ne6 {[%clk 0:00:19]} 26. Na4 {[%clk 0:01:11]}  Rad8 {[%clk 0:00:18]} 27. Rad1 {[%clk 0:01:10]}  Kf7 {[%clk 0:00:12]} 28. Bh3 {[%clk 0:01:08]}  Kf6 {[%clk 0:00:12]} 29. Bf1 {[%clk 0:01:08]}  Ng5 {[%clk 0:00:11]} 30. Kg2 {[%clk 0:01:06]}  Ne4 {[%clk 0:00:09]} 31. Rxd3 {[%clk 0:01:05]}  Rxd3 {[%clk 0:00:10]} 32. Rxd3 {[%clk 0:01:04]}  Rxd3 {[%clk 0:00:10]} 33. Bxd3 {[%clk 0:01:05]}  Ng5 {[%clk 0:00:08]} 34. h4 {[%clk 0:01:01]}  Ne6 {[%clk 0:00:08]} 35. b4 {[%clk 0:00:59]}  Nc7 {[%clk 0:00:08]} 36. f4 {[%clk 0:00:54]}  Ba1 {[%clk 0:00:07]} 37. Kf3 {[%clk 0:00:53]}  Nd5 {[%clk 0:00:07]} 38. a3 {[%clk 0:00:51]}  Ke6 {[%clk 0:00:06]} 39. e4 {[%clk 0:00:41]}  fxe4+ {[%clk 0:00:06]} 40. Kxe4 {[%clk 0:00:40]}  Nc3+ {[%clk 0:00:06]} 41. Nxc3 {[%clk 0:00:39]}  Bxc3 {[%clk 0:00:07]} 42. Bc4+ {[%clk 0:00:34]}  Kf6 {[%clk 0:00:06]} 43. b5 {[%clk 0:00:32]}  Bb2 {[%clk 0:00:06]} 44. a4 {[%clk 0:00:31]}  Ba3 {[%clk 0:00:03]} 45. bxc6 {[%clk 0:00:29]}  bxc6 {[%clk 0:00:03]} 46. Ba6 {[%clk 0:00:28]}  Bxc5 {[%clk 0:00:02]} 47. Bb7 {[%clk 0:00:28]}  Bb4 {[%clk 0:00:02]} 48. Bxc6 {[%clk 0:00:28]}  a5 {[%clk 0:00:03]} 49. g4 {[%clk 0:00:27]}  Bd2 {[%clk 0:00:03]} 50. h5 {[%clk 0:00:27]}  Bc1 {[%clk 0:00:03]} 51. Bb5 {[%clk 0:00:26]}  Bd2 {[%clk 0:00:03]} 52. Kf3 {[%clk 0:00:25]}  Bc1 {[%clk 0:00:02]} 53. Ke4 {[%clk 0:00:25]}  Bd2 {[%clk 0:00:02]} 54. Kd5 {[%clk 0:00:25]}  Bc3 {[%clk 0:00:02]} 55. Bd3 {[%clk 0:00:23]}  Bd2 {[%clk 0:00:02]} 56. Ke4 {[%clk 0:00:22]}  Bc3 {[%clk 0:00:02]} 57. Bc2 {[%clk 0:00:22]}  Bd2 {[%clk 0:00:02]} 58. Kf3 {[%clk 0:00:22]}  Bc3 {[%clk 0:00:03]} 59. Ke2 {[%clk 0:00:21]}  Bd4 {[%clk 0:00:03]} 60. Kd3 {[%clk 0:00:21]}  Bb2 {[%clk 0:00:03]} 61. Kc4 {[%clk 0:00:20]}  Bc1 {[%clk 0:00:03]} 62. Kb5 {[%clk 0:00:19]}  Bxf4 {[%clk 0:00:03]} 63. Kxa5 {[%clk 0:00:19]}  Kg5 {[%clk 0:00:03]} 64. Bf5 {[%clk 0:00:18]}  Be3 {[%clk 0:00:04]} 65. Kb5 {[%clk 0:00:18]}  Kf6 {[%clk 0:00:04]} 66. a5 {[%clk 0:00:18]}  Ke7 {[%clk 0:00:04]} 67. Kc6 {[%clk 0:00:18]}  Kd8 {[%clk 0:00:04]} 68. Kb7 {[%clk 0:00:18]}  Ke7 {[%clk 0:00:04]} 69. a6 {[%clk 0:00:19]}  Kf6 {[%clk 0:00:04]} 70. a7 {[%clk 0:00:19]}  Bxa7 {[%clk 0:00:05]} 71. Kxa7 {[%clk 0:00:19]}  Kg5 {[%clk 0:00:05]} 72. Kb6 {[%clk 0:00:20]}  Kf6 {[%clk 0:00:05]} 73. Kc7 {[%clk 0:00:21]}  Kg7 {[%clk 0:00:05]} 74. Kd6 {[%clk 0:00:21]}  Kf6 {[%clk 0:00:06]} 75. Kd7 {[%clk 0:00:21]}  Kg7 {[%clk 0:00:06]} 76. Ke7 {[%clk 0:00:22]}  Kg8 {[%clk 0:00:06]} 77. Kf6 {[%clk 0:00:22]}  Kh8 {[%clk 0:00:06]} 78. Kg6 {[%clk 0:00:23]}  Kg8 {[%clk 0:00:06]} 79. Kxh6 {[%clk 0:00:23]}  Kh8 {[%clk 0:00:00]} 80. Kg6 {[%clk 0:00:24]} 1-0


[Site "https://www.chess.com"]

[Event "Titled Tuesday Blitz May 9 Early 2023"]
[White "Srebrnic, Ana"]
[Black "Ciuffoletti, Paolo"]
[WhiteFideId "14603314"]
[BlackFideId "807630"]
[WhiteElo "2181"]
[BlackElo "2143"]
[Result "1/2-1/2"]
[Round "07"]
[TimeControl "180+2"]
[Date "2023.05.09"]
[WhiteClock "0:00:17"]
[BlackClock "0:00:04"]

1. e4 {[%clk 0:02:53]}  c5 {[%clk 0:02:58]} 2. Nf3 {[%clk 0:02:53]}  Nc6 {[%clk 0:02:59]} 3. d4 {[%clk 0:02:53]}  cxd4 {[%clk 0:02:59]} 4. Nxd4 {[%clk 0:02:54]}  Nf6 {[%clk 0:02:58]} 5. Nc3 {[%clk 0:02:54]}  e5 {[%clk 0:02:59]} 6. Ndb5 {[%clk 0:02:53]}  d6 {[%clk 0:02:59]} 7. Bc4 {[%clk 0:02:52]}  a6 {[%clk 0:02:48]} 8. Na3 {[%clk 0:02:30]}  Be6 {[%clk 0:02:21]} 9. Bd5 {[%clk 0:02:14]}  Rc8 {[%clk 0:02:13]} 10. Bg5 {[%clk 0:02:02]}  Be7 {[%clk 0:02:06]} 11. Bxf6 {[%clk 0:01:52]}  Bxf6 {[%clk 0:02:05]} 12. O-O {[%clk 0:01:44]}  O-O {[%clk 0:02:00]} 13. Ne2 {[%clk 0:01:37]}  b5 {[%clk 0:01:20]} 14. c3 {[%clk 0:01:31]}  b4 {[%clk 0:00:58]} 15. Nc2 {[%clk 0:01:14]}  a5 {[%clk 0:00:30]} 16. Bxc6 {[%clk 0:00:59]}  Rxc6 {[%clk 0:00:29]} 17. cxb4 {[%clk 0:00:59]}  axb4 {[%clk 0:00:28]} 18. Nxb4 {[%clk 0:00:54]}  Rc4 {[%clk 0:00:28]} 19. Nd5 {[%clk 0:00:38]}  Rxe4 {[%clk 0:00:27]} 20. Nec3 {[%clk 0:00:35]}  Rd4 {[%clk 0:00:26]} 21. Nxf6+ {[%clk 0:00:33]}  Qxf6 {[%clk 0:00:25]} 22. Qc2 {[%clk 0:00:29]}  Bf5 {[%clk 0:00:19]} 23. Qb3 {[%clk 0:00:28]}  Be6 {[%clk 0:00:16]} 24. Qc2 {[%clk 0:00:27]}  Qh6 {[%clk 0:00:16]} 25. Rad1 {[%clk 0:00:24]}  Rh4 {[%clk 0:00:14]} 26. h3 {[%clk 0:00:20]}  Bxh3 {[%clk 0:00:13]} 27. gxh3 {[%clk 0:00:17]}  Qg5+ {[%clk 0:00:08]} 28. Kh2 {[%clk 0:00:17]}  Qf4+ {[%clk 0:00:08]} 29. Kg2 {[%clk 0:00:16]}  Qg5+ {[%clk 0:00:05]} 30. Kh2 {[%clk 0:00:16]}  Qf4+ {[%clk 0:00:04]} 31. Kg2 {[%clk 0:00:17]}  Qg5+ {[%clk 0:00:04]} 32. Kh2 {[%clk 0:00:17]} 1/2-1/2


[Site "https://www.chess.com"]

[Event "Titled Tuesday Blitz May 9 Early 2023"]
[White "Lakshmi C"]
[Black "Necula, Iulian"]
[WhiteFideId "25035347"]
[BlackFideId "1232380"]
[WhiteElo "1942"]
[BlackElo "1790"]
[Result "1-0"]
[Round "07"]
[TimeControl "180+2"]
[Date "2023.05.09"]
[WhiteClock "0:00:01"]
[BlackClock "0:00:00"]

1. e4 {[%clk 0:03:00]}  d6 {[%clk 0:03:00]} 2. f4 {[%clk 0:03:00]}  Nf6 {[%clk 0:03:01]} 3. Nc3 {[%clk 0:02:58]}  e5 {[%clk 0:02:58]} 4. fxe5 {[%clk 0:02:58]}  dxe5 {[%clk 0:02:58]} 5. Nf3 {[%clk 0:02:58]}  Bd6 {[%clk 0:02:54]} 6. d3 {[%clk 0:02:58]}  O-O {[%clk 0:02:54]} 7. Bg5 {[%clk 0:02:57]}  h6 {[%clk 0:02:54]} 8. Bh4 {[%clk 0:02:56]}  Bg4 {[%clk 0:02:50]} 9. Be2 {[%clk 0:02:35]}  Nbd7 {[%clk 0:02:49]} 10. h3 {[%clk 0:02:31]}  Bh5 {[%clk 0:02:47]} 11. Qd2 {[%clk 0:02:27]}  c6 {[%clk 0:02:44]} 12. O-O-O {[%clk 0:02:26]}  b5 {[%clk 0:02:42]} 13. g4 {[%clk 0:02:25]}  Bg6 {[%clk 0:02:41]} 14. Rdg1 {[%clk 0:02:02]}  Qa5 {[%clk 0:02:39]} 15. Kb1 {[%clk 0:01:59]}  Bb4 {[%clk 0:02:35]} 16. g5 {[%clk 0:01:43]}  hxg5 {[%clk 0:02:17]} 17. Bxg5 {[%clk 0:01:31]}  Nh7 {[%clk 0:01:57]} 18. Be3 {[%clk 0:01:24]}  c5 {[%clk 0:01:53]} 19. Nh4 {[%clk 0:01:22]}  Bxc3 {[%clk 0:01:17]} 20. Qxc3 {[%clk 0:01:11]}  b4 {[%clk 0:01:17]} 21. Qd2 {[%clk 0:01:09]}  Qb6 {[%clk 0:01:14]} 22. Nxg6 {[%clk 0:01:02]}  fxg6 {[%clk 0:01:15]} 23. Rg2 {[%clk 0:00:54]}  Rf6 {[%clk 0:01:14]} 24. Rhg1 {[%clk 0:00:54]}  Raf8 {[%clk 0:01:14]} 25. h4 {[%clk 0:00:53]}  R8f7 {[%clk 0:01:07]} 26. c3 {[%clk 0:00:21]}  bxc3 {[%clk 0:01:05]} 27. Qxc3 {[%clk 0:00:20]}  Rc6 {[%clk 0:00:48]} 28. Qc4 {[%clk 0:00:17]}  Kf8 {[%clk 0:00:40]} 29. h5 {[%clk 0:00:14]}  g5 {[%clk 0:00:38]} 30. Bxg5 {[%clk 0:00:12]}  Nxg5 {[%clk 0:00:38]} 31. Rxg5 {[%clk 0:00:11]}  Rcf6 {[%clk 0:00:34]} 32. Rg6 {[%clk 0:00:08]}  Qd6 {[%clk 0:00:29]} 33. Rxf6 {[%clk 0:00:04]}  Qxf6 {[%clk 0:00:30]} 34. Qc2 {[%clk 0:00:03]}  Qh6 {[%clk 0:00:27]} 35. Rh1 {[%clk 0:00:03]}  Rf4 {[%clk 0:00:26]} 36. Bd1 {[%clk 0:00:03]}  Ke7 {[%clk 0:00:25]} 37. Qc4 {[%clk 0:00:03]}  g6 {[%clk 0:00:24]} 38. Qd5 {[%clk 0:00:01]}  gxh5 {[%clk 0:00:22]} 39. Rxh5 {[%clk 0:00:01]}  Qf6 {[%clk 0:00:20]} 40. Qc4 {[%clk 0:00:01]}  Qf7 {[%clk 0:00:19]} 41. Rh7 {[%clk 0:00:01]}  Qxh7 {[%clk 0:00:17]} 42. Qd5 {[%clk 0:00:01]}  Qf7 {[%clk 0:00:16]} 43. Qxf7+ {[%clk 0:00:01]}  Rxf7 {[%clk 0:00:16]} 44. Kc2 {[%clk 0:00:02]}  Rf2+ {[%clk 0:00:15]} 45. Kc3 {[%clk 0:00:03]}  Nb6 {[%clk 0:00:15]} 46. Kb3 {[%clk 0:00:03]}  Kd6 {[%clk 0:00:15]} 47. Bc2 {[%clk 0:00:03]}  Rd2 {[%clk 0:00:13]} 48. Kc3 {[%clk 0:00:03]}  Rf2 {[%clk 0:00:13]} 49. Bd1 {[%clk 0:00:03]}  a5 {[%clk 0:00:12]} 50. b3 {[%clk 0:00:03]}  Ke6 {[%clk 0:00:11]} 51. a3 {[%clk 0:00:03]}  Kf6 {[%clk 0:00:10]} 52. Bg4 {[%clk 0:00:03]}  Ra2 {[%clk 0:00:09]} 53. a4 {[%clk 0:00:03]}  Ra3 {[%clk 0:00:08]} 54. Kb2 {[%clk 0:00:02]}  Kg5 {[%clk 0:00:04]} 55. Bh3 {[%clk 0:00:01]}  Kh4 {[%clk 0:00:04]} 56. Bf1 {[%clk 0:00:01]}  Rxa4 {[%clk 0:00:02]} 57. bxa4 {[%clk 0:00:01]}  Nxa4+ {[%clk 0:00:03]} 58. Ka3 {[%clk 0:00:02]}  Nb6 {[%clk 0:00:03]} 59. Kb3 {[%clk 0:00:02]}  Kg3 {[%clk 0:00:02]} 60. Be2 {[%clk 0:00:02]}  Kf2 {[%clk 0:00:02]} 61. Bh5 {[%clk 0:00:02]}  Ke3 {[%clk 0:00:02]} 62. Kc3 {[%clk 0:00:02]}  a4 {[%clk 0:00:02]} 63. Bf7 {[%clk 0:00:01]}  a3 {[%clk 0:00:00]} 64. Ba2 {[%clk 0:00:01]} 1-0


[Site "https://www.chess.com"]

[Event "Titled Tuesday Blitz May 9 Early 2023"]
[White "Ivic, Velimir"]
[Black "Matlakov, Maxim"]
[WhiteFideId "950122"]
[BlackFideId "4168003"]
[WhiteElo "2563"]
[BlackElo "2666"]
[Result "0-1"]
[Round "08"]
[TimeControl "180+2"]
[Date "2023.05.09"]
[WhiteClock "0:00:00"]
[BlackClock "0:00:37"]

1. e4 {[%clk 0:03:00]}  c5 {[%clk 0:02:59]} 2. Nf3 {[%clk 0:03:01]}  d6 {[%clk 0:02:58]} 3. d4 {[%clk 0:03:02]}  cxd4 {[%clk 0:02:59]} 4. Nxd4 {[%clk 0:03:02]}  Nf6 {[%clk 0:03:00]} 5. Nc3 {[%clk 0:03:03]}  a6 {[%clk 0:03:00]} 6. Be3 {[%clk 0:03:04]}  e5 {[%clk 0:02:57]} 7. Nb3 {[%clk 0:03:04]}  Be7 {[%clk 0:02:56]} 8. f3 {[%clk 0:03:04]}  Be6 {[%clk 0:02:55]} 9. Qd2 {[%clk 0:03:02]}  Nbd7 {[%clk 0:02:55]} 10. g4 {[%clk 0:03:00]}  Nb6 {[%clk 0:02:51]} 11. g5 {[%clk 0:02:57]}  Nh5 {[%clk 0:02:51]} 12. O-O-O {[%clk 0:02:56]}  O-O {[%clk 0:02:50]} 13. Kb1 {[%clk 0:02:50]}  Rc8 {[%clk 0:02:49]} 14. Rg1 {[%clk 0:02:49]}  g6 {[%clk 0:02:48]} 15. h4 {[%clk 0:02:49]}  Nc4 {[%clk 0:02:43]} 16. Bxc4 {[%clk 0:02:48]}  Bxc4 {[%clk 0:02:43]} 17. Nd5 {[%clk 0:02:43]}  Bxd5 {[%clk 0:02:43]} 18. Qxd5 {[%clk 0:02:44]}  Qc7 {[%clk 0:02:43]} 19. c3 {[%clk 0:02:40]}  Kh8 {[%clk 0:02:43]} 20. Nd2 {[%clk 0:02:25]}  f6 {[%clk 0:02:42]} 21. gxf6 {[%clk 0:02:25]}  Rxf6 {[%clk 0:02:37]} 22. Bg5 {[%clk 0:01:54]}  Rff8 {[%clk 0:02:34]} 23. Bxe7 {[%clk 0:01:48]}  Qxe7 {[%clk 0:02:35]} 24. Nc4 {[%clk 0:01:48]}  Rxf3 {[%clk 0:02:16]} 25. Nxd6 {[%clk 0:01:46]}  Rcf8 {[%clk 0:02:16]} 26. Qxb7 {[%clk 0:01:36]}  Qxh4 {[%clk 0:02:15]} 27. Rh1 {[%clk 0:00:54]}  Qf4 {[%clk 0:02:04]} 28. Rxh5 {[%clk 0:00:17]}  gxh5 {[%clk 0:02:01]} 29. Nf5 {[%clk 0:00:18]}  Qg5 {[%clk 0:01:49]} 30. Rd7 {[%clk 0:00:17]}  R3xf5 {[%clk 0:01:06]} 31. exf5 {[%clk 0:00:16]}  Qxf5+ {[%clk 0:01:06]} 32. Kc1 {[%clk 0:00:16]}  h4 {[%clk 0:01:07]} 33. Qb4 {[%clk 0:00:11]}  h3 {[%clk 0:00:57]} 34. Qe7 {[%clk 0:00:05]}  Rg8 {[%clk 0:00:45]} 35. Rd8 {[%clk 0:00:00]}  h2 {[%clk 0:00:37]} 0-1


[Site "https://www.chess.com"]

[Event "Titled Tuesday Blitz May 9 Early 2023"]
[White "Orozbaev, Eldiar"]
[Black "Kramnik, Vladimir"]
[WhiteFideId "13802240"]
[BlackFideId "4101588"]
[WhiteElo "2201"]
[BlackElo "2703"]
[Result "1/2-1/2"]
[Round "08"]
[TimeControl "180+2"]
[Date "2023.05.09"]
[WhiteClock "0:00:19"]
[BlackClock "0:00:18"]

1. e4 {[%clk 0:01:41]}  c5 {[%clk 0:02:59]} 2. c3 {[%clk 0:01:40]}  e6 {[%clk 0:02:58]} 3. d4 {[%clk 0:01:40]}  d5 {[%clk 0:02:58]} 4. exd5 {[%clk 0:01:40]}  Qxd5 {[%clk 0:02:57]} 5. Nf3 {[%clk 0:01:41]}  Nf6 {[%clk 0:02:57]} 6. Be2 {[%clk 0:01:41]}  cxd4 {[%clk 0:02:52]} 7. cxd4 {[%clk 0:01:39]}  Nc6 {[%clk 0:02:51]} 8. Nc3 {[%clk 0:01:38]}  Qd6 {[%clk 0:02:50]} 9. O-O {[%clk 0:01:38]}  Be7 {[%clk 0:02:50]} 10. Nb5 {[%clk 0:01:35]}  Qd8 {[%clk 0:02:50]} 11. Bf4 {[%clk 0:01:33]}  Nd5 {[%clk 0:02:50]} 12. Bg3 {[%clk 0:01:34]}  O-O {[%clk 0:02:50]} 13. Nc3 {[%clk 0:01:34]}  Nf6 {[%clk 0:02:38]} 14. a3 {[%clk 0:01:32]}  b6 {[%clk 0:02:36]} 15. Bd3 {[%clk 0:01:31]}  Bb7 {[%clk 0:02:35]} 16. Bc2 {[%clk 0:01:28]}  Rc8 {[%clk 0:02:30]} 17. Qd3 {[%clk 0:01:28]}  g6 {[%clk 0:02:29]} 18. Rad1 {[%clk 0:01:27]}  Na5 {[%clk 0:02:19]} 19. Rfe1 {[%clk 0:01:24]}  Nc4 {[%clk 0:02:15]} 20. Rb1 {[%clk 0:01:16]}  Bxf3 {[%clk 0:02:14]} 21. gxf3 {[%clk 0:01:14]}  a6 {[%clk 0:01:52]} 22. Bb3 {[%clk 0:01:03]}  b5 {[%clk 0:01:51]} 23. a4 {[%clk 0:01:04]}  Na5 {[%clk 0:01:41]} 24. Ba2 {[%clk 0:01:01]}  b4 {[%clk 0:01:39]} 25. Ne4 {[%clk 0:01:01]}  Nxe4 {[%clk 0:01:37]} 26. fxe4 {[%clk 0:01:01]}  b3 {[%clk 0:01:35]} 27. Bxb3 {[%clk 0:01:00]}  Nxb3 {[%clk 0:01:35]} 28. Qxb3 {[%clk 0:01:00]}  Qxd4 {[%clk 0:01:36]} 29. Rbd1 {[%clk 0:01:00]}  Qb4 {[%clk 0:01:31]} 30. Qxb4 {[%clk 0:01:00]}  Bxb4 {[%clk 0:01:31]} 31. Re3 {[%clk 0:01:00]}  Rc6 {[%clk 0:01:24]} 32. Rb3 {[%clk 0:00:58]}  a5 {[%clk 0:01:23]} 33. Rbd3 {[%clk 0:00:58]}  Rc4 {[%clk 0:01:20]} 34. f3 {[%clk 0:00:57]}  Bc5+ {[%clk 0:01:18]} 35. Kf1 {[%clk 0:00:57]}  Rxa4 {[%clk 0:01:17]} 36. Be5 {[%clk 0:00:53]}  f6 {[%clk 0:00:54]} 37. Bc3 {[%clk 0:00:52]}  e5 {[%clk 0:00:49]} 38. Rd7 {[%clk 0:00:52]}  Rf7 {[%clk 0:00:46]} 39. Rxf7 {[%clk 0:00:47]}  Kxf7 {[%clk 0:00:45]} 40. Rd7+ {[%clk 0:00:48]}  Ke6 {[%clk 0:00:44]} 41. Rxh7 {[%clk 0:00:46]}  Ra1+ {[%clk 0:00:44]} 42. Ke2 {[%clk 0:00:46]}  Bb4 {[%clk 0:00:33]} 43. Bxb4 {[%clk 0:00:41]}  axb4 {[%clk 0:00:33]} 44. Rb7 {[%clk 0:00:42]}  Rh1 {[%clk 0:00:33]} 45. Rxb4 {[%clk 0:00:41]}  Rxh2+ {[%clk 0:00:32]} 46. Ke3 {[%clk 0:00:41]}  g5 {[%clk 0:00:32]} 47. Rb6+ {[%clk 0:00:41]}  Kf7 {[%clk 0:00:32]} 48. Rb7+ {[%clk 0:00:40]}  Kg6 {[%clk 0:00:32]} 49. Rb8 {[%clk 0:00:41]}  Rc2 {[%clk 0:00:28]} 50. b4 {[%clk 0:00:40]}  Rc3+ {[%clk 0:00:28]} 51. Ke2 {[%clk 0:00:40]}  Rb3 {[%clk 0:00:27]} 52. b5 {[%clk 0:00:41]}  g4 {[%clk 0:00:20]} 53. Rg8+ {[%clk 0:00:20]}  Kf7 {[%clk 0:00:18]} 54. Rxg4 {[%clk 0:00:19]} 1/2-1/2


[Site "https://www.chess.com"]